bitfinex/quotes_ETHUSD_20250210
["timestamp","ask_amount","ask_price","bid_price","bid_amount"]
[1739207989200,3.75516,2663.0,2662.6,0.05105305]
[1739207989440,3.75512,2663.1,2662.6,0.05105305]
[1739207989441,3.75531,2662.9,2662.6,0.05105305]
[1739207989611,3.75552,2662.8,2662.6,0.05105305]
[1739207989766,3.75552,2662.8,2662.3,4.55325]
[1739207989962,3.75527,2663.0,2662.7,0.05093727]
[1739207990161,3.75544,2662.8,2662.3,4.55325]
[1739207990601,7.51098,2662.8,2662.3,4.55325]
[1739207990899,3.75544,2662.8,2662.3,4.55325]
[1739207991109,3.75544,2662.8,2662.4,3.75598]
[1739207991602,3.75559,2662.7,2662.3,4.55325]
[1739207991790,3.75559,2662.7,2662.3,0.7972]
[1739207992102,3.75538,2662.9,2662.3,0.7972]
[1739207992398,3.75537,2662.9,2662.4,3.756]
[1739207992605,3.75509,2663.1,2662.3,0.0075]
[1739207992770,3.75518,2663.0,2662.7,0.788]
[1739207994181,3.75541,2662.9,2662.4,4.54392]
[1739207994518,3.75541,2662.9,2662.5,3.75586]
[1739207995232,3.7551,2663.1,2662.5,3.75578]
[1739207995445,4.51669,2663.2,2662.7,3.75558]
[1739207996228,3.75513,2663.1,2662.5,3.75578]
[1739207996431,3.75519,2663.0,2662.5,3.75578]
[1739207997502,3.75513,2663.1,2662.5,3.75578]
[1739207997830,3.75517,2663.0,2662.5,3.75578]
[1739207997996,3.75517,2663.0,2662.5,7.51157]
[1739207998195,3.75517,2663.0,2662.5,3.75578]
[1739207998583,3.75517,2663.0,2662.5,7.51158]
[1739207998786,3.75517,2663.0,2662.5,3.75578]
[1739207998980,3.75532,2662.9,2662.4,0.788]
[1739207999291,3.75532,2662.9,2662.5,3.75585]
[1739207999790,3.75513,2663.1,2662.5,3.75585]
[1739207999989,3.75518,2663.0,2662.5,3.75585]
[1739208000201,3.75513,2663.1,2662.5,3.75585]
[1739208000403,0.7618,2663.2,2662.4,0.788]
[1739208000609,0.14613,2663.3,2662.9,3.75519]
[1739208001834,3.90097,2663.3,2662.8,4.57043]
[1739208002132,3.90097,2663.3,2662.9,0.0504647]
[1739208002496,3.75496,2663.2,2662.9,0.0504647]
[1739208002698,3.75496,2663.2,2662.8,4.57042]
[1739208003020,3.90087,2663.3,2663.0,0.05034894]
[1739208003186,3.90087,2663.3,2662.9,0.0504647]
[1739208003389,3.90087,2663.3,2662.8,4.57042]
[1739208003629,3.75512,2663.1,2662.8,0.815]
[1739208003932,3.75489,2663.2,2662.9,0.0504647]
[1739208003933,3.75518,2663.0,2662.9,0.0504647]
[1739208004294,3.75518,2663.0,2662.5,4.57078]
[1739208004541,0.14613,2663.3,2662.9,0.05039899]
[1739208004741,3.75488,2663.2,2662.5,0.815]
[1739208004941,0.7986,2663.1,2662.5,0.815]
[1739208005150,3.75539,2662.9,2662.6,0.05070799]
[1739208005854,3.7555,2662.8,2662.6,0.05070799]
[1739208006209,3.75551,2662.8,2662.6,0.05070799]
[1739208007134,0.7986,2663.1,2662.6,0.05070799]
[1739208007335,3.75552,2662.8,2662.6,0.05070799]
[1739208008158,3.75556,2662.8,2662.6,0.05070799]
[1739208008373,3.75491,2663.2,2662.7,3.75549]
[1739208008665,3.75488,2663.2,2662.7,3.80615066]
[1739208008866,3.90091,2663.3,2662.8,3.75538]
[1739208009069,3.75505,2663.1,2662.9,0.05042911]
[1739208009429,3.75505,2663.1,2662.6,3.75563]
[1739208009629,3.75505,2663.1,2663.0,0.05031335]
[1739208009829,3.75505,2663.1,2662.5,4.57074]
[1739208009830,0.14613,2663.3,2662.7,3.75557]
[1739208010133,3.7549,2663.2,2662.7,7.51107]
[1739208010361,3.7549,2663.2,2662.8,0.05054488]
[1739208010632,0.14613,2663.3,2662.9,0.815]
[1739208010863,0.14613,2663.3,2663.0,3.75512]
[1739208011026,0.14613,2663.3,2663.0,3.80543335]
[1739208011226,0.14613,2663.3,2663.0,0.05031335]
[1739208011427,3.90092,2663.3,2663.0,0.05031335]
[1739208012574,3.7549,2663.2,2663.0,0.05031335]
[1739208013082,0.14613,2663.3,2663.0,0.05031335]
[1739208014735,3.90088,2663.3,2663.0,0.05031335]
[1739208015254,0.14613,2663.3,2663.0,0.05031335]
[1739208015873,3.90088,2663.3,2663.0,0.05031335]
[1739208016072,3.75494,2663.2,2663.0,0.05031335]
[1739208016575,3.90088,2663.3,2662.8,3.75542]
[1739208016779,3.90088,2663.3,2663.1,0.0501976]
[1739208016943,3.90088,2663.3,2662.7,4.57058]
[1739208017152,3.75497,2663.2,2662.7,8.32606]
[1739208017369,3.9009,2663.3,2662.8,3.75531]
[1739208017545,0.14613,2663.3,2662.9,3.75524]
[1739208019355,0.14613,2663.3,2663.1,3.75499]
[1739208019558,0.14613,2663.3,2663.0,3.75516]
[1739208019772,0.14613,2663.3,2662.9,3.75521]
[1739208020060,0.14613,2663.3,2663.0,3.75515]
[1739208020376,0.14613,2663.3,2662.9,7.51042]
[1739208020531,0.14613,2663.3,2662.7,0.815]
[1739208020735,3.75496,2663.2,2662.7,4.57051]
[1739208021367,3.75496,2663.2,2662.8,3.75543]
[1739208023376,3.75496,2663.2,2662.7,0.815]
[1739208024374,3.75496,2663.2,2662.7,4.57057]
[1739208024574,3.75496,2663.2,2662.8,3.75541]
[1739208025351,3.75496,2663.2,2662.7,0.815]
[1739208025554,3.75518,2663.0,2662.7,0.815]
[1739208025869,3.75516,2663.0,2662.7,0.815]
[1739208026430,0.7647,2663.1,2662.7,0.815]
[1739208026634,4.51981,2663.1,2662.6,3.75565]
[1739208027680,3.75537,2662.9,2662.5,4.55556]
[1739208027838,3.75537,2662.9,2662.5,0.7997]
[1739208028040,3.75537,2662.9,2662.5,4.55555]
[1739208028449,0.7647,2663.1,2662.3,6.1897]
[1739208028649,3.756,2662.4,2662.3,6.1897]
[1739208028866,3.756,2662.4,2661.7,0.7997]
[1739208028867,3.75603,2662.4,2661.7,0.7997]
[1739208029084,3.75668,2662.0,2661.7,0.7997]
[1739208029290,3.75652,2662.1,2661.7,0.7997]
[1739208029640,3.75667,2662.0,2661.7,0.7997]
[1739208029889,3.75652,2662.1,2661.7,0.7997]
[1739208030078,0.7647,2662.2,2661.7,0.7997]
[1739208030254,3.75631,2662.2,2661.7,4.55661]
[1739208030584,3.75646,2662.1,2661.7,0.7997]
[1739208030787,3.75633,2662.2,2661.7,4.55668]
[1739208030986,3.62994767,2662.8,2661.7,4.55668]
[1739208030987,0.7755,2663.0,2662.1,4.55411]
[1739208031196,3.7553,2662.9,2662.4,3.75598]
[1739208032019,0.7755,2663.0,2662.5,0.05100455]
[1739208032143,0.7755,2663.2,2662.6,4.55342]
[1739208032343,4.53039,2663.2,2662.6,4.55342]
[1739208032565,4.53039,2663.2,2662.6,4.65484075]
[1739208032769,0.7755,2663.2,2662.9,3.75526]
[1739208033091,0.14613,2663.3,2662.9,3.75526]
[1739208033252,0.14613,2663.3,2663.0,0.10079943]
[1739208033759,0.14613,2663.3,2663.1,3.75497]
[1739208033945,0.14613,2663.3,2663.0,0.10079943]
[1739208034145,0.14613,2663.3,2663.0,3.75515]
[1739208034346,0.14613,2663.3,2663.1,0.10062428]
[1739208035378,0.14613,2663.3,2663.2,3.85538664]
[1739208036508,0.14613,2663.3,2663.2,0.10050664]
[1739208036860,0.14613,2663.3,2663.0,3.75516]
[1739208037061,0.92163,2663.3,2663.2,0.10042998]
[1739208037292,0.14613,2663.3,2663.1,0.10054762]
[1739208037485,0.14613,2663.3,2663.2,0.10038345]
[1739208037896,0.14613,2663.3,2662.8,4.55317]
[1739208038102,3.90087,2663.3,2663.2,0.10038345]
[1739208038318,0.14613,2663.3,2662.8,4.55317]
[1739208038490,0.14613,2663.3,2663.2,0.10038345]
[1739208038804,0.14613,2663.3,2662.9,3.75529]
[1739208038960,0.14613,2663.3,2663.2,0.10038345]
[1739208039164,3.90087,2663.3,2662.8,4.5532]
[1739208039508,0.14613,2663.3,2662.8,4.5532]
[1739208039894,0.14613,2663.3,2662.9,0.1007364]
[1739208040705,3.90087,2663.3,2662.9,0.1007364]
[1739208041061,0.14613,2663.3,2662.9,0.1007364]
[1739208041780,0.14613,2663.3,2662.9,3.8560164]
[1739208042140,0.14613,2663.3,2662.9,0.1007364]
[1739208042277,3.75516,2663.0,2662.9,0.1007364]
[1739208042478,4.53056,2663.1,2662.9,0.1007364]
[1739208042708,4.53056,2663.1,2662.6,3.75562]
[1739208042982,0.7755,2663.1,2662.7,3.75556]
[1739208043185,0.7755,2663.1,2662.7,3.85654541]
[1739208043723,0.7755,2663.1,2662.7,0.10098541]
[1739208043724,4.53054,2663.1,2662.7,0.10098541]
[1739208043881,0.7755,2663.1,2662.7,3.85649541]
[1739208044396,4.53054,2663.1,2662.7,3.85649541]
[1739208046423,0.7755,2663.1,2662.7,3.85648541]
[1739208048522,0.14613,2663.3,2663.0,3.75513]
[1739208048686,0.14613,2663.3,2663.1,3.75492]
[1739208048887,0.14613,2663.3,2663.1,3.85546761]
[1739208049487,0.14613,2663.3,2663.1,0.10054761]
[1739208050879,0.14613,2663.3,2663.1,3.85548761]
[1739208051673,0.14613,2663.3,2663.1,0.10054761]
[1739208051829,0.14613,2663.3,2663.2,3.75488]
[1739208052030,0.14613,2663.3,2663.2,3.85530997]
[1739208054678,0.14613,2663.3,2663.2,0.10042997]
[1739208055472,0.14613,2663.3,2663.0,4.54657]
[1739208055784,0.14613,2663.3,2663.1,3.85548761]
[1739208055992,0.14613,2663.3,2663.2,3.75488]
[1739208056137,0.14613,2663.3,2663.2,7.47125321]
[1739208056336,0.14613,2663.3,2663.2,7.53414206]
[1739208057315,0.14613,2663.3,2663.2,4.64680997]
[1739208060373,0.14613,2663.3,2663.2,13.96180997]
[1739208060573,0.14613,2663.3,2663.2,16.84914206]
[1739208061373,0.14613,2663.3,2663.2,17.22554206]
[1739208063036,0.14613,2663.3,2663.2,13.40430997]
[1739208063317,0.14613,2663.3,2663.2,0.10042997]
[1739208063814,3.90095,2663.3,2663.2,0.0965474]
[1739208064015,3.75489,2663.2,2662.8,0.7861]
[1739208064220,0.14613,2663.3,2662.4,4.54208]
[1739208064221,0.7724,2663.0,2662.4,4.54208]
[1739208064422,0.7724,2663.0,2662.1,3.54473209]
[1739208064423,3.75552,2662.8,2662.2,3.75619]
[1739208064574,3.75552,2662.8,2662.1,7.42972209]
[1739208064778,4.52757,2663.0,2662.1,3.67343209]
[1739208065024,4.52757,2663.0,2662.4,3.75593]
[1739208065836,8.28284,2663.0,2662.4,3.75593]
[1739208066128,4.52757,2663.0,2662.4,3.75593]
[1739208066481,0.7724,2663.0,2662.6,3.75567]
[1739208066685,0.7724,2663.0,2662.4,7.51184]
[1739208067011,0.7724,2663.0,2662.5,2.92488684]
[1739208067207,0.7724,2663.0,2662.8,3.75539]
[1739208068025,3.90087,2663.3,2662.6,4.54174]
[1739208068026,0.14613,2663.3,2663.0,3.75514]
[1739208068441,0.14613,2663.3,2663.1,3.755]
[1739208069540,0.14613,2663.3,2663.0,3.75508]
[1739208069735,0.14613,2663.3,2663.1,4.54098]
[1739208069937,0.14613,2663.3,2663.2,3.75488]
[1739208071253,0.14613,2663.3,2663.0,8.75]
[1739208072042,0.14613,2663.3,2663.0,12.50512]
[1739208072453,3.9009,2663.3,2663.0,8.75]
[1739208073915,3.75489,2663.2,2662.6,7.51129]
[1739208074123,3.9009,2663.3,2662.7,3.75548]
[1739208074447,3.9009,2663.3,2662.8,3.75544]
[1739208075214,7.65574,2663.3,2662.8,3.75544]
[1739208075547,0.8119,2663.2,2662.8,3.75544]
[1739208076745,3.75517,2663.0,2662.5,3.75582]
[1739208077054,0.8119,2663.0,2662.6,0.09477104]
[1739208077372,0.8119,2662.6,2662.2,3.75625]
[1739208077733,0.8119,2662.6,2662.2,3.75619]
[1739208077932,0.8119,2662.6,2662.0,3.75654]
[1739208078161,0.8119,2662.6,2662.4,3.756]
[1739208078547,4.56692,2663.1,2662.5,3.75586]
[1739208079720,3.75533,2662.9,2662.4,3.756]
[1739208079981,3.75526,2663.0,2662.5,3.75586]
[1739208080274,4.56692,2663.1,2662.6,3.75566]
[1739208081757,4.56692,2663.1,2662.3,4.54132]
[1739208081758,3.75516,2663.0,2662.3,4.54132]
[1739208081975,3.75516,2663.0,2662.4,3.75593]
[1739208082664,4.56698,2663.1,2662.5,3.75573]
[1739208082847,4.56698,2663.1,2662.6,3.75565]
[1739208083347,3.75518,2663.0,2662.5,3.75573]
[1739208083569,4.56698,2663.1,2662.5,3.75573]
[1739208083880,4.56698,2663.1,2662.6,3.75571]
[1739208084259,4.56698,2663.1,2662.4,3.7559]
[1739208084260,4.567,2663.1,2662.4,3.7559]
[1739208084507,3.75524,2663.0,2662.5,3.75578]
[1739208084670,3.75524,2663.0,2662.5,7.51152]
[1739208084997,3.75524,2663.0,2662.5,3.75574]
[1739208085298,0.8119,2663.1,2662.6,3.75559]
[1739208085499,4.56695,2663.1,2662.6,3.75559]
[1739208086468,3.75532,2662.9,2662.5,3.75574]
[1739208086798,0.8119,2662.6,2662.2,3.75625]
[1739208086999,0.8119,2662.6,2662.3,3.75614]
[1739208087257,0.8119,2662.5,2661.9,3.75662]
[1739208087407,4.56788,2662.5,2661.9,3.75661]
[1739208087578,4.56788,2662.5,2662.0,3.7565]
[1739208087781,0.8119,2662.5,2662.0,3.75657]
[1739208087997,0.8119,2662.5,2662.1,3.75635]
[1739208089205,0.8119,2662.5,2662.1,3.75634]
[1739208089510,3.75532,2662.9,2662.4,3.756]
[1739208089715,4.56735,2662.8,2662.0,0.7853]
[1739208089919,4.56735,2662.8,2662.2,3.75621]
[1739208090126,3.75577,2662.6,2662.0,0.7853]
[1739208090422,3.7557,2662.7,2662.2,3.75622]
[1739208090605,0.8119,2662.6,2661.7,8.75]
[1739208090810,4.56819,2662.2,2661.7,8.75]
[1739208091119,4.56819,2662.2,2661.6,3.75703]
[1739208091322,4.56819,2662.2,2661.4,4.54269]
[1739208091490,3.75653,2662.1,2661.4,4.54269]
[1739208091690,3.75653,2662.1,2661.4,0.7853]
[1739208091896,0.8119,2662.2,2661.7,3.75689]
[1739208092289,4.56819,2662.2,2661.8,0.09628561]
[1739208092482,0.8119,2662.2,2661.8,0.09628561]
[1739208092683,0.8119,2662.2,2661.6,3.75706]
[1739208092902,0.8119,2662.2,2661.9,0.09616785]
[1739208093093,0.8119,2662.2,2661.7,3.75689]
[1739208093298,3.75643,2662.1,2662.0,0.0960501]
[1739208093505,0.8119,2662.2,2661.6,3.75702]
[1739208093506,4.5682,2662.2,2661.6,7.51403]
[1739208093824,0.8119,2662.2,2661.8,3.75678]
[1739208094321,4.56819,2662.2,2661.9,0.09616242]
[1739208094518,0.8119,2662.2,2661.9,0.09616242]
[1739208096437,4.56825,2662.2,2661.9,0.09616242]
[1739208096638,0.8119,2662.2,2661.7,3.75689]
[1739208096937,0.8119,2662.2,2661.8,3.75683]
[1739208097160,4.5682,2662.2,2661.8,3.75683]
[1739208097371,4.5682,2662.2,2661.9,0.09616242]
[1739208097872,0.8119,2662.2,2661.9,0.09616242]
[1739208099285,0.8119,2662.5,2662.1,3.75633]
[1739208099736,0.8119,2662.5,2662.2,0.09599113]
[1739208100159,0.8119,2662.5,2662.2,3.85228113]
[1739208100358,3.75508,2663.1,2662.2,0.09599113]
[1739208100553,4.56713,2663.0,2662.5,3.75584]
[1739208100757,4.56713,2663.0,2662.5,7.51168]
[1739208101089,4.56713,2663.0,2662.6,0.09545784]
[1739208101479,3.75531,2662.9,2662.6,0.09545784]
[1739208101685,0.8119,2663.0,2662.6,0.09545784]
[1739208101871,3.75551,2662.8,2662.6,0.09545784]
[1739208102038,3.75551,2662.8,2662.3,4.54135]
[1739208102240,3.75551,2662.8,2662.7,0.0902359]
[1739208102471,3.75551,2662.8,2662.3,8.29742]
[1739208102780,4.56741,2662.8,2662.7,0.0902359]
[1739208102978,4.56741,2662.8,2662.3,3.75614]
[1739208103277,3.75565,2662.7,2662.1,7.51274]
[1739208103481,3.75565,2662.7,2662.4,0.09058898]
[1739208103651,3.75565,2662.7,2662.1,7.51266]
[1739208103840,3.75565,2662.7,2662.5,0.09047128]
[1739208104039,3.75565,2662.7,2662.3,3.75613]
[1739208104241,3.75565,2662.7,2662.6,0.09025854]
[1739208104443,3.75565,2662.7,2662.3,3.75613]
[1739208104643,3.75565,2662.7,2662.6,0.09025854]
[1739208104944,4.56736,2662.8,2662.3,3.75604]
[1739208105491,4.56736,2662.8,2662.4,0.09049394]
[1739208107778,0.8119,2662.8,2662.4,0.09049394]
[1739208107975,3.75616,2662.3,2661.9,3.67263209]
[1739208108173,4.55776,2662.3,2661.6,0.7695]
[1739208108487,0.8016,2662.3,2662.0,0.08962439]
[1739208108784,4.55782,2662.3,2661.8,3.75685]
[1739208108988,4.55782,2662.3,2662.1,0.08750957]
[1739208109286,4.55782,2662.3,2661.8,3.75685]
[1739208109485,3.75631,2662.2,2661.7,3.75692]
[1739208110989,3.75631,2662.2,2661.7,7.5138]
[1739208111192,3.75631,2662.2,2661.7,3.7569]
[1739208111389,0.8016,2662.3,2661.7,3.7569]
[1739208111581,0.8016,2662.3,2661.9,3.75669]
[1739208112098,3.75589,2662.5,2662.0,3.75645]
[1739208112247,4.55736,2662.6,2662.1,3.75641]
[1739208112692,3.75588,2662.5,2662.0,3.75652]
[1739208113184,4.55736,2662.6,2662.1,3.75638]
[1739208113388,3.75596,2662.5,2662.0,3.75657]
[1739208113804,3.75602,2662.4,2661.9,0.7695]
[1739208114108,3.75602,2662.4,2661.9,4.52617]
[1739208115217,0.8016,2662.3,2661.8,4.5085057]
[1739208115504,3.75602,2662.4,2661.9,3.75671]
[1739208115689,3.75602,2662.4,2661.9,4.52621]
[1739208115892,0.8016,2662.5,2662.1,3.75632]
[1739208116066,0.8016,2662.5,2662.2,3.75623]
[1739208116266,0.8016,2662.5,2661.9,7.41343209]
[1739208116464,0.8016,2662.5,2662.1,3.75641]
[1739208117012,0.8016,2662.7,2662.3,3.75605]
[1739208117167,4.5572,2662.7,2662.3,3.75605]
[1739208117893,4.5572,2662.7,2662.2,3.75627]
[1739208118214,4.5572,2662.7,2662.3,3.75612]
[1739208118368,0.8016,2662.9,2662.5,3.75585]
[1739208119066,4.5569,2662.9,2662.4,0.7695]
[1739208119500,4.5569,2662.9,2662.4,4.52544]
[1739208120707,4.5569,2662.9,2662.4,4.52543]
[1739208121241,0.8201,2663.2,2662.4,0.80705299]
[1739208121525,0.14613,2663.3,2663.2,3.75488]
[1739208121914,0.14613,2663.3,2663.2,4.52598]
[1739208122094,0.14613,2663.3,2663.2,4.61106836]
[1739208122696,0.14613,2663.3,2663.2,5.16856836]
[1739208122918,0.14613,2663.3,2663.2,5.17606836]
[1739208124286,0.8201,2664.5,2663.7,0.7711]
[1739208124503,0.8201,2664.5,2664.1,3.75353]
[1739208124884,0.8201,2664.5,2664.2,0.08363956]
[1739208126116,0.8201,2664.5,2664.2,3.83709956]
[1739208126828,0.8201,2664.8,2664.2,3.83709956]
[1739208127015,3.7529,2664.7,2664.2,0.08363956]
[1739208128007,0.8201,2664.8,2664.2,0.08363956]
[1739208128193,0.8201,2664.8,2663.9,3.75381]
[1739208128194,3.75291,2664.6,2663.9,3.75381]
[1739208128393,3.75284,2664.7,2664.1,3.75351]
[1739208128628,3.75284,2664.7,2664.2,0.08363956]
[1739208129644,4.57281,2664.8,2664.2,3.83702956]
[1739208129860,0.8201,2664.8,2664.3,7.54409107]
[1739208130008,0.8201,2664.8,2664.4,0.08324788]
[1739208130518,0.8201,2664.8,2664.4,3.83642788]
[1739208130861,11.98900209,2665.5,2664.5,3.75304]
[1739208130862,0.8201,2665.1,2664.5,3.75304]
[1739208131062,4.5724,2665.1,2664.6,0.08301283]
[1739208131207,0.8201,2665.1,2664.6,3.83584283]
[1739208131547,4.57235,2665.1,2664.6,0.08301283]
[1739208131853,4.57235,2665.1,2664.4,6.64050209]
[1739208132008,8.32468,2665.1,2664.5,0.08304937]
[1739208132212,0.8201,2665.8,2665.0,2.88733209]
[1739208132521,0.1461331,2665.9,2665.6,6.63869209]
[1739208132724,0.1461331,2665.9,2665.8,3.75871]
[1739208132933,0.1461331,2665.9,2665.8,5.07981]
[1739208133158,0.1461331,2665.9,2665.8,5.1607139]
[1739208136325,0.1461331,2665.9,2665.8,16.95571672]
[1739208136526,4.53819,2667.1,2666.4,3.75024]
[1739208136731,3.74963,2667.0,2666.4,3.75024]
[1739208136958,3.74963,2667.0,2666.5,0.07975859]
[1739208137627,0.7888,2667.1,2666.6,3.75005]
[1739208137823,0.7888,2667.1,2666.7,0.07947539]
[1739208138065,3.74977,2666.9,2666.3,6.63780209]
[1739208138269,3.74997,2666.7,2666.1,4.50671]
[1739208138426,3.74997,2666.7,2666.1,4.50666]
[1739208138763,3.74977,2666.9,2666.3,3.75049]
[1739208139269,3.74977,2666.9,2666.4,0.07964954]
[1739208139471,3.74977,2666.9,2666.4,3.83000954]
[1739208139766,3.74964,2667.0,2666.4,3.83000954]
[1739208140141,4.53825,2667.1,2666.5,3.75019]
[1739208140328,3.74953,2667.0,2666.5,3.75019]
[1739208140636,3.74953,2667.0,2666.6,0.07941485]
[1739208141464,4.53825,2667.1,2666.6,0.07941485]
[1739208141827,8.28773,2667.1,2666.6,0.07941485]
[1739208142062,4.53825,2667.1,2666.6,0.07941485]
[1739208142570,3.74961,2667.0,2666.6,0.07941485]
[1739208142886,0.7888,2667.1,2666.3,2.88733209]
[1739208143029,3.75026,2666.5,2666.4,0.07962529]
[1739208143222,3.75009,2666.6,2666.1,1.50836734]
[1739208143467,3.7499,2666.8,2666.2,3.75051]
[1739208143688,0.7888,2667.1,2666.2,0.07986002]
[1739208143869,3.75051,2666.3,2666.2,0.07986002]
[1739208144044,3.75071,2666.2,2665.8,0.7868]
[1739208144351,3.75071,2666.2,2665.9,0.07418456]
[1739208144759,3.75067,2666.2,2665.7,6.63856209]
[1739208144944,0.8223,2666.5,2666.0,0.07406717]
[1739208145140,0.8223,2666.5,2665.9,3.75105]
[1739208145383,0.8223,2666.5,2666.1,0.07394978]
[1739208145593,0.8223,2666.5,2665.9,3.75105]
[1739208145594,0.8223,2666.5,2666.0,0.07406717]
[1739208145788,0.8223,2666.5,2666.2,3.82438241]
[1739208145947,0.8223,2666.5,2666.2,3.75055]
[1739208146145,0.8223,2666.9,2666.4,3.75037]
[1739208146578,3.8223,2666.9,2666.5,0.07348033]
[1739208146775,4.57198,2666.9,2666.4,3.75037]
[1739208146979,0.8223,2666.9,2666.6,0.07336299]
[1739208147282,3.74984,2666.8,2666.7,0.07324566]
[1739208147483,3.74984,2666.8,2666.1,3.7507]
[1739208147689,0.8223,2666.9,2666.2,0.07383241]
[1739208147995,0.8223,2667.4,2666.6,3.75009]
[1739208148193,0.8223,2667.4,2666.9,3.74957]
[1739208148692,4.57126,2667.4,2667.0,0.07289372]
[1739208149189,3.74919,2667.3,2667.0,0.07289372]
[1739208149362,0.8223,2667.4,2667.0,0.07289372]
[1739208149556,0.8223,2667.4,2666.9,3.7496]
[1739208149769,0.8223,2667.4,2667.1,3.82203642]
[1739208150084,0.8223,2667.7,2667.0,0.07289372]
[1739208150380,0.8223,2667.7,2667.2,3.74912]
[1739208150594,0.8223,2667.7,2667.5,3.74876]
[1739208150797,3.74806,2668.1,2667.5,3.74876]
[1739208150798,0.8223,2668.0,2667.5,3.74876]
[1739208151090,0.8223,2668.0,2667.8,3.74836]
[1739208151311,0.8223,2668.0,2667.9,0.07183836]
[1739208151508,0.8223,2668.0,2667.6,7.49718]
[1739208151806,3.74774,2668.3,2667.8,3.74835]
[1739208152190,3.74774,2668.3,2667.9,0.07183836]
[1739208153411,3.7477,2668.3,2667.9,0.07183836]
[1739208153565,4.57489,2668.4,2667.9,0.07183836]
[1739208153769,4.57489,2668.4,2667.9,3.82008836]
[1739208154201,4.57489,2668.4,2667.9,0.07183836]
[1739208154202,0.8273,2668.4,2667.9,0.07183836]
[1739208154401,3.74771,2668.3,2667.9,0.07183836]
[1739208154704,0.8273,2668.4,2667.9,3.74817]
[1739208154970,0.8273,2668.4,2668.0,0.07172114]
[1739208155125,0.005,2668.4,2668.2,3.74772]
[1739208155622,0.005,2668.4,2668.3,3.81906954]
[1739208155979,0.005,2668.4,2668.3,0.07136954]
[1739208156412,0.005,2668.4,2667.8,13.28511]
[1739208156611,0.005,2668.4,2668.3,0.07136954]
[1739208156774,3.75257,2668.4,2667.8,13.28511]
[1739208156977,0.005,2668.4,2668.3,0.07136954]
[1739208157209,0.005,2668.4,2668.0,3.74811]
[1739208157379,0.005,2668.4,2668.3,0.07136954]
[1739208157580,0.005,2668.4,2668.2,3.74777]
[1739208157776,0.005,2668.4,2668.3,3.81906954]
[1739208158022,0.005,2668.4,2668.3,4.60586954]
[1739208158790,0.005,2668.4,2668.3,0.85816954]
[1739208160199,0.005,2668.4,2668.3,0.07136954]
[1739208160390,0.005,2668.4,2668.1,3.74791]
[1739208160595,0.005,2668.4,2668.0,4.53484]
[1739208160847,0.005,2668.4,2668.1,0.07071152]
[1739208161920,0.005,2668.4,2668.1,3.81869152]
[1739208163031,0.005,2668.4,2668.1,0.07071152]
[1739208163191,0.005,2668.4,2668.2,3.78522459]
[1739208163390,0.005,2668.4,2668.3,0.07047713]
[1739208164139,0.005,2668.4,2668.2,3.74775]
[1739208164326,0.005,2668.4,2668.3,0.07047713]
[1739208164723,0.005,2668.4,2668.2,3.74775]
[1739208164897,0.005,2668.4,2668.3,0.07047713]
[1739208165098,0.005,2668.4,2668.2,3.74775]
[1739208165325,0.005,2668.4,2668.3,0.07047713]
[1739208165631,0.005,2668.4,2668.0,4.53484]
[1739208165632,0.005,2668.4,2668.1,3.74798]
[1739208166045,0.005,2668.4,2668.2,0.07059432]
[1739208166809,0.005,2668.4,2668.3,0.83159504]
[1739208167741,0.005,2668.4,2668.3,0.07047713]
[1739208168041,4.54456,2668.4,2667.6,9.5529]
[1739208168209,3.74802,2668.1,2667.7,0.06859988]
[1739208168409,3.74829,2667.9,2667.7,0.06859988]
[1739208168929,3.74849,2667.8,2667.3,3.7491]
[1739208169097,3.74892,2667.5,2667.0,7.42350379]
[1739208169301,3.74892,2667.5,2667.0,6.62060379]
[1739208169505,3.74891,2667.5,2667.0,3.74942]
[1739208170139,7.49784,2667.5,2667.0,3.74942]
[1739208170339,0.792,2667.9,2666.8,0.28]
[1739208170539,0.792,2667.9,2667.3,0.8029]
[1739208170745,0.792,2667.9,2667.5,3.74879]
[1739208171743,0.792,2668.2,2667.3,4.55198]
[1739208171915,0.792,2668.2,2667.7,3.74843]
[1739208172641,0.792,2668.2,2667.8,3.74837]
[1739208173024,4.53984,2668.2,2667.7,3.74843]
[1739208173400,0.792,2668.2,2667.7,3.74843]
[1739208173598,0.792,2668.2,2667.6,3.74864]
[1739208173801,4.53986,2668.2,2667.6,3.74864]
[1739208174044,0.792,2668.2,2667.7,3.74851]
[1739208174205,0.792,2668.2,2667.9,3.74826]
[1739208174637,0.792,2668.2,2667.9,3.74819]
[1739208175042,0.792,2668.2,2667.9,3.74818]
[1739208175245,0.792,2668.2,2668.0,3.74812]
[1739208175753,0.005,2668.4,2668.3,3.7477]
[1739208175930,0.005,2668.4,2668.2,3.74772]
[1739208176239,0.005,2668.4,2668.3,3.7477]
[1739208177495,0.005,2668.4,2668.0,3.74801]
[1739208177753,0.8171,2668.3,2668.0,3.74801]
[1739208177908,0.8171,2668.3,2668.2,3.74784]
[1739208178302,0.005,2668.4,2668.3,3.7477]
[1739208179150,0.005,2668.4,2668.2,3.74784]
[1739208179450,3.75265,2668.4,2667.9,3.74823]
[1739208179633,0.005,2668.4,2667.9,3.74819]
[1739208179839,0.005,2668.4,2668.1,3.74785]
[1739208180150,0.005,2668.4,2668.2,3.74774]
[1739208180302,0.005,2668.4,2668.3,3.7477]
[1739208180806,0.005,2668.4,2668.0,3.74803]
[1739208181446,0.005,2668.4,2668.1,3.74795]
[1739208181944,0.005,2668.4,2668.2,3.74777]
[1739208182147,0.005,2668.4,2668.2,3.81578379]